bitfinex/quotes_SOLUSD_20220218
["timestamp","ask_amount","ask_price","bid_price","bid_amount"]
[1645205267430,0.25,90.807,90.75,16.5332]
[1645205267628,0.25,90.807,90.751,110.25]
[1645205267830,6.0,90.844,90.761,110.0]
[1645205268033,5.0,90.912,90.762,0.25]
[1645205268034,3.06956283,90.867,90.762,0.25]
[1645205268230,6.0,90.866,90.763,110.0]
[1645205268430,6.0,90.866,90.764,0.25]
[1645205268633,53.10285889,90.865,90.763,2.6293831]
[1645205268830,110.0,90.864,90.762,48.4704]
[1645205269031,5.505,90.863,90.762,48.4704]
[1645205269330,8.1343831,90.863,90.762,48.4704]
[1645205269532,23.6201,90.862,90.762,48.4704]
[1645205269731,16.5283,90.86,90.762,48.4704]
[1645205269936,5.755,90.859,90.78,16.5291]
[1645205270133,2.8793831,90.859,90.78,16.5291]
[1645205270532,8.1343831,90.858,90.78,16.5291]
[1645205270730,16.5299,90.85,90.762,48.4704]
[1645205270931,51.36434877,90.849,90.762,48.4704]
[1645205271330,53.99373187,90.849,90.762,48.4704]
[1645205271532,32.0473831,90.848,90.762,48.4704]
[1645205271731,0.25,90.847,90.762,48.4704]
[1645205271933,0.25,90.847,90.763,0.25]
[1645205272331,0.25,90.847,90.77,16.5309]
[1645205272934,110.0,90.845,90.77,16.5309]
[1645205273136,0.25,90.844,90.77,16.5309]
[1645205273335,2.8793831,90.844,90.77,16.5309]
[1645205273536,2.6293831,90.843,90.77,16.5309]
[1645205273739,16.5317,90.84,90.77,16.5309]
[1645205274137,2.6293831,90.839,90.77,16.5309]
[1645205274858,16.5317,90.84,90.77,16.5309]
[1645205275760,23.418,90.848,90.77,16.5309]
[1645205276861,23.418,90.848,90.77,29.3509]
[1645205277262,110.0,90.846,90.77,29.3509]
[1645205277460,8.6293831,90.847,90.77,29.3509]
[1645205277666,16.5319,90.84,90.77,16.5309]
[1645205277862,0.25,90.84,90.77,16.5309]
[1645205278564,2.6293831,90.839,90.77,16.5309]
[1645205279564,112.6293831,90.839,90.76,16.5326]
[1645205279765,110.0,90.837,90.74,12.82]
[1645205279964,110.0,90.835,90.74,12.82]
[1645205280269,110.0,90.833,90.731,47.048]
[1645205280464,110.0,90.831,90.731,47.048]
[1645205280664,110.0,90.829,90.731,47.048]
[1645205280869,110.0,90.827,90.731,47.048]
[1645205281365,2.6293831,90.826,90.731,47.048]
[1645205281766,2.6293831,90.826,90.75,12.82]
[1645205281963,16.1357,90.84,90.75,12.82]
[1645205282166,16.1357,90.84,90.75,13.07]
[1645205282364,6.0,90.833,90.75,13.07]
[1645205282565,6.0,90.833,90.751,110.0]
[1645205282768,6.0,90.833,90.752,5.507]
[1645205282965,6.0,90.833,90.751,112.6293831]
[1645205283165,6.0,90.833,90.751,110.0]
[1645205283365,6.0,90.833,90.752,6.0]
[1645205283567,6.0,90.833,90.751,110.0]
[1645205283967,6.0,90.833,90.771,110.0]
[1645205284168,1.52658923,90.869,90.781,110.0]
[1645205284569,1.52658923,90.875,90.783,110.0]
[1645205284968,53.79275522,90.875,90.783,118.1323831]
[1645205285169,110.0,90.874,90.79,16.5231]
[1645205285371,1.52658923,90.872,90.79,29.3431]
[1645205285569,1.52658923,90.868,90.79,29.3431]
[1645205285869,25.63258923,90.87,90.79,29.3431]
[1645205286068,6.0,90.869,90.79,29.3431]
[1645205286270,7.52658923,90.869,90.79,29.3431]
[1645205286870,6.0,90.869,90.79,29.3431]
[1645205287470,1.52658923,90.868,90.79,29.3431]
[1645205288270,1.52658923,90.866,90.79,29.3431]
[1645205288473,1.52658923,90.866,90.791,110.0]
[1645205288674,6.0,90.869,90.81,16.5205]
[1645205288876,0.25,90.87,90.81,29.3405]
[1645205289073,53.79275522,90.875,90.81,29.3405]
[1645205290072,55.31934445,90.875,90.81,29.3405]
[1645205290273,6.0,90.874,90.81,29.3405]
[1645205290574,6.0,90.874,90.81,16.5205]
[1645205290772,1.52658923,90.865,90.81,16.5205]
[1645205290972,8.1323831,90.873,90.8,16.5253]
[1645205290973,1.52658923,90.861,90.8,16.5253]
[1645205291172,1.52658923,90.857,90.8,16.5253]
[1645205291472,1.52658923,90.857,90.77,12.82]
[1645205291671,1.52658923,90.854,90.77,12.82]
[1645205291872,1.52658923,90.855,90.77,12.82]
[1645205292372,1.52658923,90.854,90.78,16.5289]
[1645205292673,1.52658923,90.853,90.78,16.5289]
[1645205293572,23.8132,90.856,90.79,16.5273]
[1645205293772,6.0,90.855,90.79,16.5273]
[1645205294072,50.06740346,90.859,90.79,16.5273]
[1645205294271,6.0,90.858,90.79,16.5273]
[1645205294474,1.52658923,90.857,90.79,16.5273]
[1645205294671,1.52658923,90.854,90.79,16.5273]
[1645205295073,1.52658923,90.857,90.79,16.5273]
[1645205295372,1.52658923,90.856,90.79,16.5273]
[1645205295572,1.52658923,90.857,90.79,16.5273]
[1645205295977,1.52658923,90.855,90.79,16.5273]
[1645205296174,1.52658923,90.854,90.79,16.5273]
[1645205296674,1.52658923,90.856,90.79,16.5273]
[1645205296875,1.52658923,90.857,90.79,16.5273]
[1645205297073,1.52658923,90.854,90.79,16.5273]
[1645205297274,1.52658923,90.853,90.79,16.5273]
[1645205297474,1.52658923,90.851,90.79,16.5273]
[1645205297674,0.25,90.85,90.79,16.5273]
[1645205298276,1.77658923,90.85,90.79,16.5273]
[1645205298774,1.52658923,90.844,90.79,16.5273]
[1645205298976,1.52658923,90.843,90.79,16.5273]
[1645205299374,48.31121576,90.845,90.79,16.5273]
[1645205299573,49.83780499,90.845,90.79,16.5273]
[1645205299973,1.52658923,90.846,90.79,16.5273]
[1645205300174,1.77658923,90.85,90.79,16.5273]
[1645205300374,0.25,90.85,90.79,29.3473]
[1645205300574,1.52658923,90.856,90.791,110.0]
[1645205300775,1.52658923,90.857,90.811,110.0]
[1645205300976,1.52658923,90.864,90.82,12.82]
[1645205301179,42.22369954,90.868,90.82,12.82]
[1645205302176,6.0,90.867,90.82,12.82]
[1645205302378,6.0,90.867,90.82,29.3378]
[1645205303179,0.25,90.87,90.82,29.3378]
[1645205303378,1.52658923,90.884,90.82,29.3378]
[1645205303580,6.0,90.883,90.82,29.3378]
[1645205303780,6.0,90.882,90.82,29.3378]
[1645205303979,1.52658923,90.882,90.82,29.3378]
[1645205304179,59.72571817,90.881,90.82,29.3378]
[1645205304379,61.2523074,90.881,90.82,29.3378]
[1645205304580,59.72571817,90.881,90.82,29.3378]
[1645205304779,0.25,90.88,90.82,29.3378]
[1645205304978,1.77658923,90.88,90.82,29.3378]
[1645205305182,1.52658923,90.87,90.79,55.0739]
[1645205305384,1.52658923,90.868,90.81,16.5234]
[1645205305582,51.62479905,90.867,90.81,16.5234]
[1645205305878,54.25418215,90.867,90.81,16.5234]
[1645205306078,2.6293831,90.866,90.81,16.5234]
[1645205306278,1.52658923,90.865,90.81,16.5234]
[1645205306678,1.52658923,90.863,90.81,16.5234]
[1645205307081,1.52658923,90.863,90.782,23.3263]
[1645205307283,1.52658923,90.853,90.77,67.9071]
[1645205307480,142.5495831,90.862,90.77,12.82]
[1645205307481,1.52658923,90.848,90.77,12.82]
[1645205307884,1.52658923,90.844,90.77,12.82]
[1645205308386,1.52658923,90.842,90.77,12.82]
[1645205308580,1.52658923,90.841,90.77,12.82]
[1645205308781,0.25,90.84,90.77,12.82]
[1645205308983,53.6747854,90.838,90.77,12.82]
[1645205309183,6.0,90.837,90.77,29.3511]
[1645205309781,24.8229,90.836,90.77,29.3511]
[1645205310182,16.5315,90.83,90.77,29.3511]
[1645205310481,16.7815,90.83,90.77,29.3511]
[1645205312082,16.7815,90.83,90.77,16.5311]
[1645205312281,0.25,90.83,90.77,16.5311]
[1645205312482,24.8229,90.836,90.77,16.5311]
[1645205312884,24.8229,90.836,90.77,29.3511]
[1645205313283,24.8229,90.836,90.77,29.6011]
[1645205313485,24.8229,90.836,90.77,29.3511]
[1645205313686,6.0,90.835,90.77,29.3511]
[1645205318615,6.0,90.835,90.75,55.1]
[1645205318616,110.0,90.834,90.749,47.0237]
[1645205318815,1.52658923,90.83,90.737,5.506]
[1645205319015,110.0,90.828,90.737,5.506]
[1645205319216,1.52658923,90.825,90.737,5.506]
[1645205319417,111.52658923,90.823,90.737,5.506]
[1645205319617,115.507,90.822,90.737,5.506]
[1645205319817,1.52658923,90.821,90.737,5.506]
[1645205320017,5.757,90.82,90.737,5.506]
[1645205320418,53.10288241,90.809,90.74,16.5362]
[1645205320617,24.4979,90.808,90.74,16.5362]
[1645205320820,110.0,90.806,90.74,16.5362]
[1645205321022,110.0,90.806,90.68,12.82]
[1645205321225,110.0,90.804,90.67,12.82]
[1645205321419,1.52658923,90.789,90.69,16.5444]
[1645205321619,110.0,90.787,90.661,76.59546643]
[1645205321820,110.0,90.786,90.672,110.0]
[1645205322022,0.25,90.79,90.681,110.0]
[1645205322218,0.25,90.79,90.691,110.0]
[1645205322619,0.25,90.79,90.692,2.6293831]
[1645205322818,110.0,90.799,90.691,110.0]
[1645205323019,16.5396,90.79,90.72,16.5395]
[1645205323219,30.1764,90.789,90.72,16.5395]
[1645205324120,30.1764,90.789,90.71,16.5416]
[1645205324622,2.6293831,90.788,90.71,16.5416]
[1645205324821,5.509,90.787,90.71,16.5416]
[1645205325022,110.0,90.786,90.71,16.5416]
[1645205325223,110.0,90.784,90.7,16.5433]
[1645205325424,110.0,90.779,90.681,22.7216]
[1645205325621,16.545,90.78,90.681,22.7216]
[1645205325622,110.0,90.777,90.681,22.7216]
[1645205325823,110.0,90.775,90.681,22.7216]
[1645205326021,110.0,90.773,90.681,22.7216]
[1645205326226,110.0,90.771,90.663,23.5046]
[1645205326428,110.0,90.769,90.664,6.0]
[1645205326625,110.0,90.767,90.664,6.0]
[1645205326825,110.0,90.765,90.664,6.0]
[1645205327026,110.0,90.763,90.663,23.5046]
[1645205327229,29.7026,90.764,90.64,67.984]
[1645205327230,110.0,90.759,90.64,67.984]
[1645205327427,110.0,90.757,90.64,67.984]
[1645205327629,110.0,90.755,90.64,67.984]
[1645205327828,149.12699359,90.753,90.64,67.984]
[1645205328128,110.0,90.751,90.641,23.5096]
[1645205328329,5.761,90.75,90.65,55.1593]
[1645205328532,24.7299,90.75,90.668,2.6293831]
[1645205328830,112.6293831,90.749,90.652,23.5096]
[1645205329030,5.511,90.748,90.652,23.5096]
[1645205329231,8.1403831,90.748,90.652,23.5096]
[1645205329431,112.6293831,90.747,90.652,23.5096]
[1645205329631,28.015,90.746,90.652,23.5096]
[1645205329835,22.504,90.746,90.653,2.6293831]
[1645205330234,22.504,90.746,90.66,55.1542]
[1645205330434,22.504,90.746,90.66,68.2242]
[1645205330644,22.504,90.746,90.661,110.0]
[1645205330835,22.504,90.746,90.68,16.546]
[1645205332038,22.504,90.746,90.69,16.5452]
[1645205332838,24.7299,90.75,90.69,16.5452]
[1645205332839,0.25,90.75,90.69,16.5452]
[1645205333038,0.25,90.76,90.69,16.5452]
[1645205333238,2.6293831,90.774,90.69,16.5452]
[1645205333439,6.0,90.773,90.69,16.5452]
[1645205333838,63.55091453,90.772,90.69,16.5452]
[1645205335471,0.25,90.771,90.69,16.5452]
[1645205336870,0.25,90.771,90.71,16.5413]
[1645205338372,110.25,90.771,90.7,16.5438]
[1645205338574,110.25,90.771,90.684,24.7526]
[1645205339375,110.25,90.771,90.683,0.4289015]
[1645205340378,110.0,90.769,90.69,16.5455]
[1645205340577,0.25,90.768,90.69,16.5455]
[1645205340775,110.0,90.767,90.69,16.5455]
[1645205340975,0.25,90.766,90.69,16.5455]
[1645205341377,110.0,90.759,90.683,0.4289015]
[1645205341676,0.25,90.758,90.683,0.4289015]
[1645205342077,110.0,90.756,90.683,0.4289015]
[1645205342279,110.0,90.754,90.683,0.4289015]
[1645205342477,110.0,90.752,90.683,0.4289015]
[1645205342679,110.0,90.75,90.683,0.4289015]
[1645205342883,0.25,90.749,90.683,0.4289015]
[1645205343078,110.0,90.739,90.683,0.4289015]
[1645205343377,110.0,90.737,90.683,0.4289015]
[1645205343578,110.0,90.735,90.683,0.4289015]
[1645205343777,110.0,90.733,90.683,0.4289015]
[1645205343977,110.0,90.731,90.683,0.4289015]
[1645205344177,6.0,90.73,90.683,0.4289015]
[1645205344378,110.25,90.729,90.683,0.4289015]
[1645205344979,110.0,90.727,90.683,0.4289015]
[1645205345183,110.0,90.725,90.683,0.4289015]
[1645205345379,110.0,90.723,90.683,0.4289015]
[1645205345779,110.0,90.721,90.683,0.4289015]
[1645205345983,110.0,90.721,90.683,0.0089015]
[1645205345984,16.805,90.72,90.683,0.0089015]
[1645205346182,110.0,90.719,90.683,0.0089015]
[1645205346380,110.0,90.717,90.683,0.0089015]
[1645205346583,5.761,90.718,90.601,24.6143]
[1645205346584,110.0,90.715,90.601,24.6143]
[1645205346783,110.0,90.713,90.601,24.6143]
[1645205346979,110.0,90.711,90.601,24.6143]
[1645205347181,25.6404831,90.716,90.601,24.6143]
[1645205347182,110.0,90.699,90.62,16.5583]
[1645205347382,0.25,90.698,90.62,16.5583]
[1645205347982,0.25,90.698,90.602,110.0]
[1645205348381,0.25,90.699,90.63,16.5566]
[1645205348583,0.25,90.706,90.63,16.5566]
[1645205348785,0.25,90.707,90.63,16.5566]
[1645205349183,6.25,90.707,90.631,134.4347]
[1645205349387,6.25,90.707,90.648,0.25]
[1645205349584,6.25,90.707,90.65,16.5526]
[1645205349985,6.0,90.707,90.65,16.5526]
[1645205351388,0.25,90.706,90.65,16.5526]
[1645205353190,6.0,90.707,90.651,110.0]
[1645205353400,6.0,90.707,90.66,16.5483]
[1645205353792,6.0,90.707,90.661,110.0]
[1645205353989,23.7159,90.75,90.661,110.0]
[1645205354191,23.7159,90.75,90.663,110.0]
[1645205354390,1.52658923,90.764,90.671,110.0]
[1645205354590,22.8193,90.768,90.672,0.25]
[1645205354994,22.8193,90.768,90.673,2.6293831]
[1645205355191,22.8193,90.768,90.674,0.25]
[1645205355793,23.3464,90.767,90.674,0.25]
[1645205355996,23.3464,90.767,90.701,110.0]
[1645205356195,3.06956283,90.797,90.701,110.0]
[1645205356196,1.52658923,90.78,90.701,110.0]
[1645205356397,1.52658923,90.78,90.703,110.0]
[1645205356598,48.1847,90.796,90.704,0.25]
[1645205356599,1.52658923,90.792,90.704,0.25]
[1645205356796,1.52658923,90.795,90.704,0.25]
[1645205357197,1.52658923,90.79,90.704,0.25]
[1645205357396,1.52658923,90.792,90.704,0.25]
[1645205357598,1.52658923,90.79,90.72,16.5403]
[1645205357800,6.0,90.789,90.72,16.5403]
[1645205357996,1.52658923,90.787,90.72,16.5403]
[1645205358199,1.52658923,90.786,90.72,16.5403]
[1645205358598,1.52658923,90.785,90.72,16.5403]
[1645205358796,0.25,90.784,90.72,16.5403]
[1645205358997,1.52658923,90.786,90.72,16.5403]
[1645205359196,1.52658923,90.788,90.72,16.5403]
[1645205359402,6.0,90.789,90.72,16.5403]
[1645205359997,1.52658923,90.791,90.72,16.5403]
[1645205360298,6.25,90.79,90.74,16.5345]
[1645205360498,0.25,90.79,90.74,16.5345]
[1645205360697,6.25,90.795,90.74,16.5345]
[1645205361125,6.0,90.795,90.74,16.5345]
[1645205361530,8.57756283,90.831,90.74,16.5345]
[1645205361531,1.52658923,90.813,90.74,16.5345]
[1645205361726,1.52658923,90.815,90.74,16.5345]
[1645205361930,1.52658923,90.816,90.74,16.5345]
[1645205362828,0.25,90.815,90.74,16.5345]
[1645205363025,1.77658923,90.817,90.74,16.5345]
[1645205363225,0.25,90.817,90.74,16.5345]
[1645205363825,0.25,90.82,90.74,16.5345]
[1645205364125,0.25,90.821,90.74,16.5345]
[1645205364326,1.52658923,90.82,90.74,16.5345]
[1645205364526,18.06118923,90.82,90.74,16.5345]
[1645205364725,1.52658923,90.808,90.74,16.5345]
[1645205364925,1.52658923,90.804,90.732,23.0731]
[1645205365124,1.52658923,90.802,90.732,23.0731]
[1645205365726,16.5384,90.8,90.732,23.0731]
[1645205365932,5.758,90.799,90.732,23.0731]
[1645205366327,5.758,90.799,90.73,16.5384]
[1645205366727,0.25,90.799,90.73,16.5384]
[1645205367526,16.5396,90.79,90.723,5.507]
[1645205367731,0.25,90.789,90.723,5.507]
[1645205368729,0.25,90.799,90.723,5.507]
[1645205369329,0.25,90.799,90.73,16.5383]
[1645205369529,0.25,90.801,90.731,110.25]
[1645205369730,22.6484,90.806,90.731,110.25]
[1645205369731,0.25,90.805,90.731,110.0]
[1645205369930,0.25,90.805,90.732,0.25]
[1645205370131,1.52658923,90.822,90.74,12.82]
[1645205370431,1.52658923,90.83,90.741,110.25]
[1645205370833,1.52658923,90.83,90.741,112.8793831]
[1645205371033,1.52658923,90.837,90.751,110.0]
[1645205371232,1.52658923,90.843,90.753,110.0]
[1645205371431,23.3313,90.862,90.752,6.25]
[1645205371432,1.52658923,90.851,90.755,110.0]
[1645205371634,1.52658923,90.858,90.757,110.0]
[1645205371831,1.52658923,90.861,90.761,110.0]
[1645205372032,42.21338685,90.86,90.763,110.0]
[1645205372231,1.52658923,90.858,90.77,16.5255]
[1645205372432,1.52658923,90.858,90.771,6.25]
[1645205372631,0.25,90.857,90.771,6.0]
[1645205372834,111.52658923,90.855,90.76,67.905]
[1645205373035,110.0,90.853,90.76,67.905]
[1645205373234,110.0,90.851,90.76,12.82]
[1645205373436,110.0,90.849,90.76,29.3524]
[1645205373737,5.756,90.848,90.76,29.3524]
[1645205373936,1.52658923,90.844,90.76,29.3524]
[1645205374136,41.84263314,90.843,90.76,29.3524]
[1645205374339,5.506,90.842,90.76,29.3524]
[1645205374549,0.25,90.841,90.76,29.3524]
[1645205375338,16.5303,90.84,90.76,29.3524]
[1645205375538,0.25,90.839,90.76,29.3524]
[1645205375741,6.25,90.839,90.76,29.3524]
[1645205376144,29.9269,90.839,90.76,29.3524]
[1645205378042,29.9269,90.839,90.761,110.0]
[1645205378242,29.9269,90.839,90.78,16.5283]
[1645205378946,6.25,90.839,90.781,110.0]
[1645205379143,0.25,90.839,90.781,110.0]
[1645205379444,6.25,90.842,90.79,16.5241]
[1645205379844,6.25,90.842,90.76,12.82]
[1645205380045,5.506,90.841,90.75,12.82]
[1645205380242,0.25,90.84,90.75,12.82]
[1645205380446,5.506,90.839,90.77,16.5309]
[1645205380647,0.25,90.838,90.77,16.5309]
[1645205380846,16.7798,90.84,90.77,16.5309]
[1645205381244,6.0,90.839,90.77,16.5309]
[1645205381453,0.25,90.838,90.77,16.5309]
[1645205381849,1.52658923,90.836,90.77,16.5309]
[1645205382046,0.25,90.835,90.77,16.5309]
[1645205382647,1.52658923,90.832,90.77,16.5309]
[1645205382849,52.62758127,90.829,90.77,16.5309]
[1645205383048,1.52658923,90.828,90.76,16.5328]
[1645205383245,26.44598923,90.828,90.76,16.5328]
[1645205383646,1.52658923,90.822,90.76,16.5328]
[1645205383850,110.0,90.819,90.73,55.1112]
[1645205384055,1.52658923,90.817,90.75,16.5344]
[1645205384247,49.87552993,90.813,90.75,16.5344]
[1645205384448,5.757,90.812,90.75,16.5344]
[1645205384751,1.52658923,90.809,90.75,16.5344]
[1645205384949,1.77658923,90.808,90.75,16.5344]
[1645205385549,1.77658923,90.808,90.74,16.5366]
[1645205385750,1.52658923,90.805,90.69,12.82]
[1645205385950,54.77932559,90.795,90.69,12.82]
[1645205386150,1.52658923,90.791,90.69,12.82]
[1645205386453,16.7891,90.79,90.691,110.0]
[1645205386651,1.52658923,90.786,90.691,110.0]
[1645205386848,1.52658923,90.783,90.72,16.5401]
[1645205387049,44.83749956,90.781,90.72,16.5401]
[1645205387448,6.0,90.78,90.72,16.5401]
[1645205388251,22.5414,90.78,90.71,16.5421]
[1645205388452,31.94748923,90.779,90.71,16.5421]
[1645205388655,110.0,90.778,90.71,16.5421]
[1645205388852,110.0,90.776,90.692,47.7595]
[1645205389051,5.51,90.777,90.692,47.7595]
[1645205389052,2.6293831,90.777,90.692,47.7595]
[1645205389254,5.51,90.776,90.692,47.7595]
[1645205389452,16.5429,90.77,90.692,47.7595]
[1645205389652,7.03658923,90.769,90.675,110.0]
[1645205389853,5.51,90.769,90.677,110.0]
[1645205390053,0.25,90.768,90.679,110.0]
[1645205390252,48.21555602,90.766,90.679,110.0]
[1645205390452,5.761,90.765,90.679,110.0]
[1645205390651,5.761,90.765,90.676,6.0]
[1645205390652,0.25,90.765,90.691,110.0]
[1645205390855,1.52658923,90.782,90.692,0.25]
[1645205391053,6.0,90.777,90.692,2.8793831]
[1645205391256,6.0,90.777,90.694,110.0]
[1645205391453,1.52658923,90.789,90.696,110.0]
[1645205391657,22.4324,90.812,90.71,16.54]
[1645205391658,1.52658923,90.785,90.71,16.54]
[1645205391855,1.52658923,90.784,90.71,16.54]
[1645205392053,0.25,90.783,90.71,16.54]
[1645205392253,5.509,90.782,90.71,16.54]
[1645205392453,110.25,90.781,90.701,23.0917]
[1645205392655,110.0,90.779,90.643,115.0151656]
[1645205392853,110.0,90.777,90.675,6.0]
[1645205393054,110.0,90.775,90.675,6.0]
[1645205393256,110.0,90.775,90.69,16.5454]
[1645205393456,152.88026588,90.773,90.675,6.0]
[1645205393657,152.88026588,90.773,90.676,110.0]
[1645205393658,1.52658923,90.771,90.676,110.0]
[1645205393857,0.25,90.77,90.678,110.0]
[1645205394057,0.25,90.77,90.68,110.0]
[1645205394256,0.25,90.77,90.68,126.5475]
[1645205394658,0.25,90.77,90.681,2.8793831]
[1645205394878,0.25,90.77,90.682,110.0]
[1645205395080,0.25,90.772,90.683,0.25]
[1645205395278,0.25,90.772,90.683,2.8793831]
[1645205395678,41.35367665,90.773,90.7,16.5412]
[1645205396983,23.745,90.781,90.701,112.6293831]
[1645205397180,6.0,90.78,90.72,16.5368]
[1645205397384,1.52658923,90.801,90.72,16.5368]
[1645205397580,6.0,90.8,90.72,16.5368]
[1645205397779,47.6447,90.805,90.72,16.5368]
[1645205397780,121.509,90.799,90.72,16.5368]
[1645205397981,51.80528006,90.796,90.72,16.5368]
[1645205398183,110.0,90.794,90.71,16.5417]
[1645205398381,110.0,90.792,90.71,16.5417]
[1645205398583,1.52658923,90.789,90.703,23.3938]
[1645205398782,110.0,90.79,90.703,23.3938]
[1645205398981,1.52658923,90.791,90.703,23.3938]
[1645205398982,23.8865,90.789,90.703,23.3938]
[1645205399181,0.25,90.788,90.703,23.3938]
[1645205399584,0.25,90.788,90.711,110.0]
[1645205399785,51.80528006,90.796,90.712,0.25]
[1645205399786,0.25,90.795,90.712,0.25]
[1645205399984,0.25,90.795,90.721,110.0]
[1645205400183,51.80528006,90.796,90.721,110.0]
[1645205400584,51.80528006,90.796,90.73,16.5344]
[1645205401386,0.25,90.795,90.73,16.5344]
[1645205401786,6.0,90.795,90.73,16.5344]
[1645205403992,118.1373831,90.794,90.702,5.508]
[1645205404190,1.52658923,90.791,90.702,5.508]
[1645205404391,46.72993427,90.778,90.702,5.508]
[1645205404589,140.7464,90.777,90.702,5.508]
[1645205404792,140.7464,90.777,90.655,46.9677]
[1645205404992,110.0,90.769,90.655,46.9677]
[1645205405193,110.0,90.767,90.643,0.4151656]
[1645205405390,110.0,90.763,90.66,16.5511]
[1645205405792,110.0,90.759,90.66,16.5511]
[1645205405991,110.0,90.749,90.643,0.4151656]
[1645205406190,16.5507,90.75,90.643,0.4151656]
[1645205406191,110.0,90.739,90.643,0.4151656]
[1645205406392,110.0,90.737,90.643,0.4151656]
[1645205406591,51.3336,90.738,90.643,0.4151656]
[1645205406592,110.0,90.735,90.643,0.4151656]
[1645205406791,5.763,90.736,90.643,0.4151656]
[1645205406792,2.6293831,90.736,90.643,0.4151656]
[1645205406991,0.25,90.734,90.643,0.4151656]
[1645205407191,0.25,90.734,90.648,2.6293831]
[1645205407395,40.95380004,90.732,90.648,2.6293831]
[1645205407593,5.0,90.711,90.643,0.4151656]
[1645205407792,164.20446112,90.709,90.643,0.4151656]
[1645205407994,12.82,90.7,90.643,0.4151656]
[1645205408191,0.25,90.699,90.643,0.4151656]
[1645205408594,2.6293831,90.698,90.643,0.4151656]
[1645205408894,54.20446112,90.709,90.643,0.4151656]
[1645205409894,112.8793831,90.708,90.643,0.4151656]
[1645205410298,2.6293831,90.707,90.643,0.4151656]
[1645205410495,110.25,90.706,90.643,0.4151656]
[1645205410695,110.0,90.699,90.643,0.4151656]
[1645205410895,0.25,90.698,90.643,0.4151656]
[1645205411502,110.0,90.696,90.643,0.4151656]
[1645205411699,46.46518671,90.695,90.643,0.4151656]
[1645205411898,110.0,90.694,90.643,0.4151656]
[1645205412096,110.0,90.692,90.643,0.4151656]
[1645205412298,8.1433831,90.693,90.643,0.4151656]
[1645205412499,0.25,90.691,90.643,0.4151656]
[1645205412698,2.8793831,90.691,90.643,0.4151656]
[1645205412898,2.6293831,90.69,90.643,0.4151656]
[1645205413098,0.25,90.689,90.643,0.4151656]
[1645205413499,110.0,90.687,90.647,0.0080018]
[1645205413800,110.0,90.685,90.647,0.0080018]
[1645205414001,110.0,90.683,90.647,0.0080018]
[1645205414300,0.25,90.682,90.647,0.0080018]
[1645205414501,2.8793831,90.682,90.647,0.0080018]
[1645205414699,110.0,90.68,90.647,0.0080018]
[1645205415002,0.25,90.679,90.643,0.0051656]
[1645205415200,2.8793831,90.679,90.643,0.0051656]
[1645205415402,110.0,90.677,90.643,0.0051656]
[1645205415600,0.25,90.676,90.643,0.0051656]
[1645205415800,2.8793831,90.676,90.643,0.0051656]
[1645205416201,6.0,90.675,90.643,0.0051656]
[1645205416402,110.0,90.673,90.643,0.0051656]
[1645205416602,110.0,90.671,90.56,55.2064]
[1645205416803,110.0,90.669,90.541,110.0]
[1645205417003,43.38137751,90.666,90.541,110.0]